fUST/lending_fUST_20240430
["ID","MTS","AMOUNT","RATE_DAILY","PERIOD"]
[324924856,1714423839779,-156.46024239,0.00033495,7]
[324924857,1714423839788,-153.46035339,0.00033686,7]
[324924859,1714423839797,-153.46035339,0.00033723,7]
[324924860,1714423839806,-466.35092847,0.00034,4]
[324924861,1714423839815,-16228.24523147,0.00034,60]
[324924862,1714423839825,-248.43121626,0.00034025,7]
[324924863,1714423839835,-156.46024239,0.00034385,7]
[324924864,1714423839844,-629.229653,0.00034521,2]
[324924865,1714423839853,-304.242988,0.00034521,2]
[324924866,1714423839862,-156.46024239,0.00034818,7]
[324924867,1714423839871,-248.43121626,0.0003485,7]
[324924868,1714423839880,-2000.0,0.000349,2]
[324924869,1714423839890,-180.74166293,0.000349,2]
[324924870,1714423839899,-224.34545947,0.00034977,7]
[324924871,1714423839908,-43512.51,0.0003499,3]
[324924872,1714423839917,-1329.78267311,0.00035,4]
[324924873,1714423839927,-154.78330338,0.00035,4]
[324924874,1714423839939,-5914.65556104,0.00035,4]
[324924875,1714423839948,-1307.89147106,0.00035,7]
[324924876,1714423839958,-1025.00357517,0.00035,2]
[324924877,1714423839967,-447.0489704,0.00035,10]
[324924878,1714423839976,-961.68740692,0.00035,30]
[324924879,1714423839986,-12756.78468986,0.00035,4]
[324924880,1714423839995,-791.81686347,0.00035,30]
[324924881,1714423840004,-1508.16249302,0.00035455,14]
[324924882,1714423840014,-153.93095889,0.00035544,7]
[324924883,1714423840023,-3139.531024,0.00035616,120]
[324924884,1714423840032,-248.43121626,0.00035812,7]
[324924885,1714423840041,-154.78330338,0.0003589,2]
[324924886,1714423840050,-251.0,0.00036,2]
[324924888,1714423840059,-248.43121626,0.00036099,7]
[324924890,1714423840072,-156.46024239,0.00036139,7]
[324924892,1714423840081,-152.77728267,0.00036148,7]
[324924893,1714423840090,-434.54,0.00036235,2]
[324924894,1714423840099,-150.0,0.00036235,2]
[324924895,1714423840109,-210.983,0.00036235,2]
[324924896,1714423840118,-224.837,0.00036235,2]
[324924897,1714423840127,-156.46024239,0.00036382,7]
[324924898,1714423840136,-248.43121626,0.00036482,7]
[324924899,1714423840145,-153.46035339,0.00036651,7]
[324924900,1714423840155,-153.93095889,0.00036665,7]
[324924901,1714423840164,-156.46024239,0.00036687,7]
[324924902,1714423840174,-666.0,0.00036776,120]
[324924903,1714423840183,-666.0,0.00036776,120]
[324924904,1714423840194,-666.0,0.00036776,120]
[324924905,1714423840203,-220.87568685,0.00036776,120]
[324924906,1714423840213,-500.0,0.00036776,10]
[324924908,1714423840222,-173.253505,0.00036781,2]
[324924910,1714423840231,-156.46024239,0.00036843,7]
[324924912,1714423840241,-3512.35610251,0.00037,2]
[324924914,1714423840250,-153.7952465,0.00037126,2]
[324924916,1714423840259,-248.43121626,0.00037443,7]
[324924918,1714423840269,-3000.0,0.000375,32]
[324924920,1714423840279,-3000.0,0.0003751,32]
[324924922,1714423840289,-3000.0,0.0003752,32]
[324924924,1714423840298,-3000.0,0.0003753,32]
[324924926,1714423840307,-3000.0,0.0003754,32]
[324924928,1714423840317,-3000.0,0.0003755,32]
[324924930,1714423840326,-3000.0,0.0003756,32]
[324924932,1714423840336,-1111.67355029,0.00037563,8]
[324924934,1714423840345,-1000.0,0.00037564,3]
[324924936,1714423840355,-3000.0,0.0003757,32]
[324924938,1714423840365,-3000.0,0.0003758,32]
[324924939,1714423840374,-3000.0,0.0003759,32]
[324924940,1714423840382,-3000.0,0.000376,32]
[324924941,1714423840391,-3000.0,0.0003761,32]
[324924942,1714423840401,-3000.0,0.0003762,32]
[324924943,1714423840409,-3000.0,0.0003763,32]
[324924944,1714423840418,-3000.0,0.0003764,32]
[324924945,1714423840427,-3000.0,0.0003765,32]
[324924946,1714423840436,-3000.0,0.0003766,32]
[324924947,1714423840452,-1366.26453115,0.00037681,4]
[324924948,1714423840461,-248.43121626,0.00037879,7]
[324924949,1714423840470,-406.00916,0.00037948,2]
[324924950,1714423840479,-306.0,0.00037948,2]
[324924951,1714423840488,-5009.79512819,0.00038,2]
[324924952,1714423840497,-500.0,0.00038146,10]
[324924953,1714423840505,-248.43121626,0.00038424,7]
[324924954,1714423840514,-180.74166292,0.00038518,2]
[324924955,1714423840523,-153.46035339,0.00038564,7]
[324924956,1714423840532,-151.13418049,0.00038569,2]
[324924957,1714423840541,-248.43121626,0.00038698,7]
[324924958,1714423840550,-156.18617837,0.00038777,7]
[324924959,1714423840559,-417.0,0.00039235,2]
[324924960,1714423840569,-150.0,0.00039235,2]
[324924961,1714423840578,-150.0,0.00039235,2]
[324924962,1714423840587,-150.0,0.00039235,2]
[324924963,1714423840596,-248.43121626,0.00039248,7]
[324924964,1714423840605,-248.43121626,0.00039459,7]
[324924965,1714423840615,-500.0,0.00039516,10]
[324924966,1714423840624,-20000.0,0.00039824,4]
[324924967,1714423840633,-248.43121626,0.00039824,7]
[324924968,1714423840642,-1159.84144778,0.0003988,120]
[324924969,1714423840652,-4253.66286157,0.0004,4]
[324924970,1714423840660,-150.78889555,0.00040158,2]
[324924971,1714423840670,-629.229653,0.00040548,2]
[324924972,1714423840678,-304.242988,0.00040548,2]
[324924973,1714423840689,-1452.36690419,0.00040825,11]
[324924974,1714423840700,-301.57779109,0.00040833,4]
[324924975,1714423840709,-156.46024248,0.00040877,30]
[324924976,1714423840718,-500.0,0.00040886,10]
[324924977,1714423840727,-153.46035339,0.00040978,30]
[324924978,1714423840737,-232.10092761,0.00040999,30]
[324924979,1714423840746,-252.6859923,0.00041,2]
[324924980,1714423840755,-20131.90275053,0.00041,2]
[324924981,1714423840765,-162.0,0.00041,14]
[324924982,1714423840774,-153.46035341,0.00041071,30]
[324924983,1714423840783,-500.0,0.00041096,31]
[324924984,1714423840792,-500.0,0.00041096,31]
[324924985,1714423840801,-500.0,0.00041096,31]
[324924986,1714423840810,-500.0,0.00041096,31]
[324924987,1714423840819,-500.0,0.00041096,31]
[324924988,1714423840828,-500.0,0.00041096,31]
[324924989,1714423840837,-500.0,0.00041096,31]
[324924990,1714423840846,-500.0,0.00041096,31]
[324924991,1714423840855,-500.0,0.00041096,31]
[324924992,1714423840864,-500.0,0.00041096,31]
[324924993,1714423840874,-500.0,0.00041096,31]
[324924994,1714423840883,-500.0,0.00041096,31]
[324924995,1714423840893,-500.0,0.00041096,31]
[324924996,1714423840902,-500.0,0.00041096,31]
[324924997,1714423840911,-500.0,0.00041096,31]
[324924998,1714423840920,-321.24970218,0.00041096,31]
[324924999,1714423840929,-500.0,0.00041096,31]
[324925000,1714423840942,-500.0,0.00041096,31]
[324925001,1714423840952,-500.0,0.00041096,31]
[324925002,1714423840961,-500.0,0.00041096,31]
[324925003,1714423840971,-500.0,0.00041096,31]
[324925004,1714423840979,-500.0,0.00041096,31]
[324925005,1714423840988,-500.0,0.00041096,31]
[324925006,1714423840997,-500.0,0.00041096,31]
[324925007,1714423841107,-500.0,0.00041096,31]
[324925008,1714423841119,-500.0,0.00041096,31]
[324925009,1714423841129,-500.0,0.00041096,31]
[324925010,1714423841140,-500.0,0.00041096,31]
[324925011,1714423841150,-500.0,0.00041096,31]
[324925012,1714423841160,-500.0,0.00041096,31]
[324925013,1714423841170,-500.0,0.00041096,31]
[324925014,1714423841179,-500.0,0.00041096,31]
[324925015,1714423841188,-500.0,0.00041096,31]
[324925016,1714423841198,-500.0,0.00041096,31]
[324925017,1714423841208,-500.0,0.00041096,31]
[324925018,1714423841217,-500.0,0.00041096,31]
[324925019,1714423841226,-500.0,0.00041096,31]
[324925020,1714423841235,-500.0,0.00041096,31]
[324925021,1714423841244,-650.0,0.00041096,31]
[324925022,1714423841253,-500.0,0.00041096,31]
[324925023,1714423841263,-150.0,0.00041241,60]
[324925024,1714423841272,-1452.36690419,0.00041242,11]
[324925025,1714423841281,-404.099999,0.000414,15]
[324925026,1714423841290,-603.15558218,0.00041519,7]
[324925027,1714423841299,-3139.531024,0.00041553,120]
[324925028,1714423841309,-150.0,0.00041767,60]
[324925029,1714423841318,-248.43121628,0.0004183,30]
[324925030,1714423841330,-2401.59068717,0.00041868,2]
[324925031,1714423841340,-280.68822047,0.00041868,4]
[324925032,1714423841349,-154.78330338,0.00041868,15]
[324925033,1714423841359,-6073.25093483,0.00041868,20]
[324925034,1714423841368,-2000.0,0.00041868,2]
[324925035,1714423841377,-1161.98061199,0.00041868,4]
[324925036,1714423841387,-159.9713947,0.00041868,68]
[324925037,1714423841396,-673.55445774,0.00041868,4]
[324925038,1714423841405,-9742.08348567,0.00041868,120]
[324925039,1714423841415,-588.0,0.000419,30]
[324925040,1714423841424,-44444.0,0.00041919,5]
[324925041,1714423841434,-5000.0,0.00042,120]
[324925042,1714423841446,-444.38453395,0.00042,120]
[324925043,1714423841456,-2673.1589257,0.00042,30]
[324925044,1714423841466,-10000.0,0.00042,30]
[324925045,1714423841475,-16042.01768988,0.00042,30]
[324925046,1714423841483,-805.06024593,0.00042,30]
[324925047,1714423841492,-150.0,0.00042095,60]
[324925048,1714423841501,-150.0,0.00042095,60]
[324925049,1714423841510,-1000.0,0.00042111,7]
[324925050,1714423841518,-1626.53,0.00042119,7]
[324925051,1714423841527,-1626.53,0.00042119,7]
[324925052,1714423841536,-1626.53,0.00042119,7]
[324925053,1714423841545,-1626.53,0.00042119,7]
[324925054,1714423841553,-1626.53,0.00042119,7]
[324925055,1714423841562,-1626.53,0.00042119,7]
[324925056,1714423841571,-1626.53,0.00042119,7]
[324925057,1714423841580,-1626.53,0.00042119,7]
[324925058,1714423841589,-1626.53,0.00042119,7]
[324925059,1714423841598,-1626.53,0.00042119,7]
[324925060,1714423841607,-14787.78197068,0.00042119,7]
[324925061,1714423841617,-51174.48224402,0.0004212,90]
[324925078,1714423842327,-1791.08962887,0.0004212,90]
[324925095,1714423843396,-31327.72456257,0.0004212,90]
[324925372,1714424837164,-300.0,0.00018224,2]
[324925373,1714424837184,-160.12482,0.00018225,2]
[324925374,1714424837205,-194.17138684,0.00018225,2]
[324925381,1714424957097,-214.30521006,0.00018223,2]
[324925406,1714425032498,-300.0,0.00018223,2]
[324925407,1714425032507,-192.04,0.00018224,2]
[324925408,1714425032518,-556.24667069,0.00018224,2]
[324925409,1714425032557,-636.14672363,0.00018224,2]
[324925429,1714425038614,-464.44475159,0.00018224,2]
[324925430,1714425038625,-57361.71370794,0.00018224,2]
[324925431,1714425038636,-875.28887311,0.00018225,2]
[324925432,1714425038645,-250.63531542,0.00018225,2]
[324925433,1714425038654,-873.55445774,0.00018225,2]
[324925434,1714425038664,-24705.82861316,0.00018225,2]
[324925435,1714425038673,-1005.37137864,0.000189,2]
[324925436,1714425038683,-359.77248058,0.00019178,2]
[324925437,1714425038692,-155.56621507,0.00019223,2]
[324925438,1714425038702,-363.77625771,0.00019561,2]
[324925439,1714425038711,-1555.62550122,0.000199,2]
[324925440,1714425038720,-755.15321141,0.000199,2]
[324925441,1714425038729,-2101.14247839,0.00019999,2]
[324925443,1714425038739,-97912.92203377,0.0002,2]
[324925445,1714425038748,-57388.61036401,0.0002,2]
[324925447,1714425038757,-200.0,0.0002,2]
[324925448,1714425038767,-420.0,0.00020045,2]
[324925449,1714425038777,-212.01364249,0.00020909,2]
[324925450,1714425038788,-1038.57706317,0.0002091,2]
[324925451,1714425038797,-208.30319827,0.0002091,2]
[324925452,1714425038807,-1221.2750687,0.0002091,2]
[324925453,1714425038816,-67387.81511513,0.00020911,2]
[324925454,1714425038826,-154.81422293,0.00020911,2]
[324925455,1714425038836,-3166.79512651,0.00020911,2]
[324925456,1714425038846,-222.0618018,0.00020912,2]
[324925457,1714425038856,-159.13598878,0.00022,2]
[324925458,1714425038866,-587.0,0.0002205,2]
[324925459,1714425038875,-244.7139,0.00022466,2]
[324925460,1714425038885,-237.690441,0.00022466,2]
[324925461,1714425038894,-713.83575721,0.00023,2]
[324925462,1714425038904,-755.15321138,0.00023804,2]
[324925463,1714425038912,-1005.37137864,0.000239,2]
[324925464,1714425038922,-474.0,0.00024255,2]
[324925465,1714425038931,-500.0,0.00024657,2]
[324925466,1714425038940,-1016.4703902,0.00025,2]
[324925467,1714425038950,-153.50538082,0.00025201,2]
[324925468,1714425038959,-153.50538082,0.00025454,2]
[324925469,1714425038968,-520.76720575,0.000266,2]
[324925470,1714425038977,-153.93095889,0.00026803,2]
[324925471,1714425038986,-243.88610161,0.00026962,2]
[324925472,1714425039115,-243.88610161,0.00027005,2]
[324925473,1714425039126,-155.11008545,0.00027085,2]
[324925474,1714425039138,-243.88610161,0.00027325,2]
[324925475,1714425039149,-166.666666,0.00027397,2]
[324925476,1714425039158,-243.88610161,0.00027499,2]
[324925477,1714425039168,-755.15321138,0.00027708,2]
[324925478,1714425039179,-220.92131871,0.00028,2]
[324925479,1714425039188,-166.666666,0.00028038,2]
[324925480,1714425039198,-243.88610161,0.00028138,2]
[324925481,1714425039207,-153.50538082,0.00028161,2]
[324925482,1714425039217,-155.11008545,0.00028311,2]
[324925483,1714425039227,-244.7139,0.00028493,2]
[324925484,1714425039239,-179.193364,0.00028493,2]
[324925485,1714425039250,-179.193364,0.00028493,25]
[324925486,1714425039260,-179.193364,0.00028493,49]
[324925487,1714425039273,-179.193364,0.00028493,72]
[324925488,1714425039282,-179.193364,0.00028493,96]
[324925489,1714425039292,-179.193364,0.00028493,120]
[324925490,1714425039302,-237.690441,0.00028493,2]
[324925491,1714425039311,-155.11008545,0.0002855,2]
[324925492,1714425039320,-166.666666,0.00028679,2]
[324925493,1714425039330,-155.11008545,0.00028771,2]
[324925494,1714425039342,-1005.37137864,0.000289,2]
[324925495,1714425039353,-153.50538082,0.00028972,2]
[324925496,1714425039364,-243.88610161,0.00029075,2]
[324925497,1714425039373,-1517.06011,0.000291,7]
[324925498,1714425039382,-153.50538082,0.00029263,2]
[324925499,1714425039392,-166.666666,0.00029321,2]
[324925500,1714425039404,-243.88610161,0.00029405,2]
[324925501,1714425039415,-243.88610161,0.00029422,2]
[324925502,1714425039424,-156.18617837,0.00029582,2]
[324925503,1714425039434,-1000.0,0.000296,7]
[324925504,1714425039443,-152.77728267,0.00029652,2]
[324925505,1714425039452,-243.88610161,0.0002974,2]
[324925506,1714425039461,-166.666666,0.00029962,2]
[324925507,1714425039471,-154.78330338,0.0003,4]
[324925508,1714425039481,-154.78330338,0.0003,4]
[324925509,1714425039492,-154.78330338,0.0003,4]
[324925510,1714425039502,-259.0,0.0003,2]
[324925511,1714425039512,-1000.0,0.000301,7]
[324925512,1714425039521,-243.88610161,0.00030153,7]
[324925513,1714425039531,-153.93095889,0.00030517,7]
[324925514,1714425039540,-1000.0,0.000306,7]
[324925515,1714425039549,-166.666666,0.00030603,2]
[324925516,1714425039559,-153.50538082,0.0003063,7]
[324925517,1714425039568,-286.72543224,0.00031,2]
[324925518,1714425039577,-1000.0,0.000311,7]
[324925519,1714425039587,-243.88610161,0.00031194,7]
[324925520,1714425039596,-243.88610161,0.00031308,7]
[324925521,1714425039606,-243.88610161,0.00031327,7]
[324925522,1714425039615,-29688.55303323,0.00031587,7]
[324925523,1714425039625,-2483.30132558,0.00031587,2]
[324925524,1714425039634,-44421.76678401,0.00031587,2]
[324925525,1714425039644,-2187.0381657,0.00031587,2]
[324925526,1714425039653,-300.0,0.00031587,2]
[324925527,1714425039662,-781.30639903,0.00031587,2]
[324925528,1714425039672,-1192.06603489,0.00031587,14]
[324925529,1714425039682,-224.62805428,0.00031587,10]
[324925530,1714425039691,-286.55434273,0.00031587,2]
[324925531,1714425039700,-5455.20390675,0.00031587,2]
[324925532,1714425039709,-4087.68306417,0.00031587,2]
[324925533,1714425039719,-315.48630084,0.00031587,2]
[324925534,1714425039728,-281.12466351,0.00031587,2]
[324925535,1714425039737,-4578.11340256,0.00031587,2]
[324925536,1714425039747,-1022.94863432,0.00031587,10]
[324925537,1714425039757,-19196.75151336,0.00031587,2]
[324925538,1714425039766,-6632.5736523,0.00031587,5]
[324925539,1714425039776,-469.05936293,0.00031587,2]
[324925540,1714425039786,-430.70263388,0.00031587,2]
[324925541,1714425039796,-3011.72564414,0.00031587,2]
[324925542,1714425039806,-1003.38381317,0.00031587,2]
[324925543,1714425039816,-2867.67739548,0.00031587,2]
[324925544,1714425039825,-521.9,0.00031587,120]
[324925545,1714425039835,-153.34957969,0.00031587,2]
[324925546,1714425039845,-153.34957969,0.00031587,2]
[324925547,1714425039854,-153.34957969,0.00031587,2]
[324925548,1714425039863,-153.34957969,0.00031587,2]
[324925549,1714425039873,-977.55062889,0.00031587,2]
[324925550,1714425039884,-1000.0,0.000316,7]
[324925551,1714425039893,-755.15321138,0.00031612,2]
[324925552,1714425039902,-150.78889555,0.00031624,2]
[324925553,1714425039912,-250.14068304,0.00031624,2]
[324925554,1714425039921,-153.50538082,0.00031728,7]
[324925555,1714425039930,-243.88610161,0.00031754,7]
[324925556,1714425039939,-243.88610161,0.0003185,7]
[324925557,1714425039949,-766.51798716,0.00032,4]
[324925558,1714425039958,-1210.30575349,0.00032,3]
[324925559,1714425039967,-243.88610161,0.00032028,7]
[324925560,1714425039977,-301.57779109,0.00032155,4]
[324925561,1714425039986,-153.50538082,0.00032272,7]
[324925562,1714425039995,-153.50538082,0.00032337,7]
[324925563,1714425040004,-224.34545947,0.00032341,7]
[324925564,1714425040014,-603.15558218,0.00032696,7]
[324925565,1714425040023,-155.11008545,0.00032784,7]
[324925566,1714425040032,-151.13418049,0.00032999,2]
[324925567,1714425040041,-5000.0,0.00033,5]
[324925568,1714425040051,-152.77728267,0.0003306,7]
[324925569,1714425040059,-243.88610161,0.00033194,7]
[324925570,1714425040072,-153.93095889,0.00033415,7]
[324925571,1714425040087,-1206.31116437,0.00033523,30]
[324925572,1714425040101,-243.88610161,0.00033643,7]
[324925573,1714425040112,-243.88610161,0.00033741,7]
[324925574,1714425040126,-501.86462815,0.000338,60]
[324925575,1714425040139,-44444.0,0.000338,3]
[324925576,1714425040152,-243.88610161,0.00033847,7]
[324925578,1714425040165,-16143.2088339,0.000339,7]
[324925581,1714425040179,-1210.30575349,0.0003392,3]
[324925583,1714425040193,-243.88610161,0.00033991,7]
[324925585,1714425040207,-150.0,0.00033999,2]
[324925586,1714425040220,-466.35092847,0.00034,4]
[324925587,1714425040234,-16228.24523147,0.00034,60]
[324925588,1714425040248,-152.77728267,0.00034336,7]
[324925589,1714425040261,-243.88610161,0.00034471,7]
[324925591,1714425040273,-153.50538082,0.00034505,7]
[324925593,1714425040284,-244.7139,0.00034521,2]
[324925595,1714425040297,-237.690441,0.00034521,2]
[324925597,1714425040310,-1271.52239957,0.00034728,12]
[324925598,1714425040324,-155.11008545,0.00034728,7]
[324925599,1714425040337,-155.11008545,0.00034734,7]
[324925600,1714425040352,-26905.96443452,0.000349,2]
[324925601,1714425040367,-150.0,0.00034999,2]
[324925602,1714425040380,-555.39795402,0.00035,10]
[324925605,1714425040391,-5914.65556104,0.00035,4]
[324925607,1714425040404,-214.59376254,0.00035,4]
[324925609,1714425040418,-1329.78267311,0.00035,4]
[324925611,1714425040431,-1025.00357517,0.00035,2]
[324925614,1714425040445,-1307.89147106,0.00035,7]
[324925616,1714425040455,-12756.78468986,0.00035,4]
[324925618,1714425040468,-961.68740692,0.00035,30]
[324925620,1714425040481,-791.81686347,0.00035,30]
[324925623,1714425040493,-10285.44452255,0.00035,2]
[324925625,1714425040503,-33147.42444606,0.00035,7]
[324925627,1714425040514,-2102.2310673,0.00035,120]
[324925629,1714425040525,-155.11008545,0.00035229,7]
[324925631,1714425040536,-153.50538082,0.00035281,7]
[324925633,1714425040548,-1508.16249302,0.00035455,14]
[324925636,1714425040559,-755.15321138,0.00035516,2]
[324925638,1714425040572,-1626.53,0.00035615,2]
[324925640,1714425040584,-1626.53,0.00035615,2]
[324925643,1714425040596,-1626.53,0.00035615,2]
[324925645,1714425040608,-1626.53,0.00035615,2]
[324925647,1714425040620,-1626.53,0.00035615,2]
[324925649,1714425040631,-1626.53,0.00035615,2]
[324925652,1714425040643,-1626.53,0.00035615,2]
[324925654,1714425040656,-1626.53,0.00035615,2]
[324925656,1714425040667,-1626.53,0.00035615,2]
[324925658,1714425040679,-1626.53,0.00035615,2]
[324925661,1714425040691,-151.0,0.00035616,2]
[324925663,1714425040702,-151.0,0.00035616,2]
[324925665,1714425040714,-257.461812,0.00035616,2]
[324925667,1714425040726,-257.461812,0.00035616,2]
[324925670,1714425040738,-151.0,0.00035616,2]
[324925672,1714425040750,-399.706225,0.00035616,2]
[324925674,1714425040762,-399.706225,0.00035616,2]
[324925676,1714425040773,-151.0,0.00035616,2]
[324925679,1714425040785,-151.0,0.00035616,2]
[324925681,1714425040797,-897.634451,0.00035616,2]
[324925683,1714425040808,-897.634451,0.00035616,2]
[324925685,1714425040820,-601.229399,0.00035616,2]
[324925688,1714425040831,-601.229399,0.00035616,2]
[324925690,1714425040844,-151.0,0.00035616,2]
[324925692,1714425040855,-2754.504831,0.00035616,2]
[324925695,1714425040867,-2754.504831,0.00035616,2]
[324925697,1714425040878,-151.0,0.00035616,2]
[324925699,1714425040889,-199.785048,0.00035616,2]
[324925701,1714425040900,-3139.531024,0.00035616,120]
[324925704,1714425040912,-243.88610161,0.00035731,7]
[324925706,1714425040924,-1331.33632884,0.0003584,7]
[324925708,1714425040936,-153.93095889,0.00035881,7]
[324925710,1714425040948,-154.78330338,0.0003589,2]
[324925713,1714425040959,-150.0,0.00035999,2]
[324925715,1714425040970,-1828.44111052,0.00036,30]
[324925717,1714425040982,-62070.07144477,0.00036,14]
[324925719,1714425040992,-153.36964,0.00036,2]
[324925722,1714425041004,-153.36964,0.00036,2]
[324925724,1714425041015,-151.0,0.00036,2]
[324925726,1714425041027,-151.0,0.00036,2]
[324925728,1714425041038,-151.0,0.00036,2]
[324925730,1714425041051,-151.0,0.00036,2]
[324925733,1714425041063,-961.113768,0.00036,2]
[324925735,1714425041074,-961.113768,0.00036,2]
[324925737,1714425041086,-245.535074,0.00036,2]
[324925739,1714425041098,-245.535074,0.00036,2]
[324925742,1714425041109,-874.261483,0.00036,2]
[324925744,1714425041121,-874.261483,0.00036,2]
[324925746,1714425041132,-1664.089055,0.00036,2]
[324925748,1714425041143,-1664.089055,0.00036,2]
[324925751,1714425041156,-151.0,0.00036,2]
[324925753,1714425041167,-389.794286,0.00036,2]
[324925755,1714425041178,-389.794286,0.00036,2]
[324925757,1714425041190,-151.0,0.00036,2]
[324925760,1714425041202,-151.0,0.00036,2]
[324925762,1714425041214,-1151.577001,0.00036,2]
[324925764,1714425041227,-1151.577001,0.00036,2]
[324925767,1714425041240,-151.0,0.00036,2]
[324925769,1714425041251,-151.0,0.00036,2]
[324925771,1714425041262,-3916.878664,0.00036,2]
[324925773,1714425041271,-3916.878664,0.00036,2]
[324925775,1714425041281,-409.951757,0.00036,2]
[324925794,1714425041455,-409.951757,0.00036,2]
[324925798,1714425041475,-186.386089,0.00036,2]
[324925799,1714425041487,-250.0,0.00036235,2]
[324925801,1714425041498,-256.30765386,0.0003624,2]
[324925803,1714425041507,-434.54,0.00036322,2]
[324925805,1714425041517,-150.0,0.00036322,2]
[324925808,1714425041528,-155.11008545,0.00036775,7]
[324925809,1714425041537,-666.0,0.00036919,120]
[324925811,1714425041547,-666.0,0.00036919,120]
[324925813,1714425041557,-666.0,0.00036919,120]
[324925815,1714425041566,-666.0,0.00036919,120]
[324925817,1714425041576,-666.0,0.00036919,120]
[324925820,1714425041586,-666.0,0.00036919,120]
[324925821,1714425041595,-666.0,0.00036919,120]
[324925823,1714425041604,-220.87568685,0.00036919,120]
[324925825,1714425041614,-500.0,0.00036919,10]
[324925827,1714425041623,-156.18617837,0.00036926,7]
[324925829,1714425041633,-150.0,0.00036999,2]
[324925831,1714425041642,-3512.35610251,0.00037,2]
[324925833,1714425041653,-10579.73867581,0.00037,2]
[324925835,1714425041662,-151.0,0.00037,2]
[324925837,1714425041671,-601.229399,0.00037,2]
[324925839,1714425041680,-601.229399,0.00037,2]
[324925841,1714425041690,-151.0,0.00037,2]
[324925843,1714425041699,-2754.504831,0.00037,2]
[324925845,1714425041708,-2754.504831,0.00037,2]
[324925847,1714425041718,-151.0,0.00037,2]
[324925849,1714425041727,-306.0,0.00037022,2]
[324925851,1714425041737,-243.88610161,0.00037159,7]
[324925853,1714425041746,-153.7952465,0.00037159,2]
[324925855,1714425041755,-406.00916,0.00037159,2]
[324925857,1714425041765,-151.0,0.00037169,2]
[324925859,1714425041775,-151.0,0.00037169,2]
[324925861,1714425041784,-690.679428,0.00037169,2]
[324925863,1714425041794,-690.679428,0.00037169,2]
[324925865,1714425041803,-31401.6058109,0.0003717,2]
[324925884,1714425041986,-23779.03520305,0.0003717,2]
[324925886,1714425041997,-34686.88224082,0.0003717,2]
[324925888,1714425042006,-151.261958,0.0003717,2]
[324925890,1714425042015,-248.551644,0.0003717,2]
[324925892,1714425042024,-248.551644,0.0003717,2]
[324925894,1714425042033,-226.802442,0.0003717,2]
[324925896,1714425042042,-151.0,0.0003717,2]
[324925898,1714425042051,-151.0,0.0003717,2]
[324925900,1714425042060,-151.0,0.0003717,2]
[324925901,1714425042069,-257.461812,0.0003717,2]
[324925903,1714425042078,-257.461812,0.0003717,2]
[324925905,1714425042087,-607.037688,0.0003717,2]
[324925907,1714425042096,-607.037688,0.0003717,2]
[324925909,1714425042106,-242.839787,0.0003717,2]
[324925911,1714425042115,-242.839787,0.0003717,2]
[324925913,1714425042124,-874.261483,0.0003717,2]
[324925915,1714425042133,-874.261483,0.0003717,2]
[324925917,1714425042142,-1664.089055,0.0003717,2]
[324925919,1714425042153,-1664.089055,0.0003717,2]
[324925921,1714425042163,-151.0,0.0003717,2]
[324925923,1714425042172,-389.794286,0.0003717,2]
[324925925,1714425042181,-389.794286,0.0003717,2]
[324925927,1714425042191,-151.0,0.0003717,2]
[324925929,1714425042200,-223.458975,0.0003717,2]
[324925931,1714425042209,-1151.577001,0.0003717,2]
[324925933,1714425042218,-1151.577001,0.0003717,2]
[324925934,1714425042228,-151.0,0.0003717,2]
[324925936,1714425042237,-399.706225,0.0003717,2]
[324925938,1714425042246,-399.706225,0.0003717,2]